lending/lending_fUSD_20250430
["ID","MTS","AMOUNT","RATE_DAILY","PERIOD"]
[359447522,1746021081365,-450.0,0.00039726,12]
[359447523,1746021081374,-156.31576373,0.00039726,12]
[359447524,1746021081382,-1374.099691,0.00039726,14]
[359447525,1746021081391,-450.0,0.00039726,12]
[359447526,1746021081400,-450.0,0.00039726,12]
[359447527,1746021081410,-471.36,0.00039726,12]
[359447528,1746021081418,-297.16316741,0.00039726,12]
[359447529,1746021081426,-450.0,0.00039726,12]
[359447530,1746021081437,-450.0,0.00039726,12]
[359447531,1746021081446,-450.0,0.00039726,12]
[359447532,1746021081455,-450.0,0.00039726,12]
[359447533,1746021081465,-225565.19,0.00039726,7]
[359447534,1746021081479,-950.66,0.00039726,2]
[359447535,1746021081489,-450.0,0.00039726,12]
[359447536,1746021081499,-450.0,0.00039726,12]
[359447537,1746021081510,-450.0,0.00039726,12]
[359447538,1746021081519,-450.0,0.00039726,12]
[359447539,1746021081529,-483.62,0.00039726,12]
[359447540,1746021081539,-450.0,0.00039726,12]
[359447541,1746021081548,-502.5,0.00039726,12]
[359447542,1746021081558,-271.90188957,0.00039726,12]
[359447543,1746021081568,-284.44822581,0.00039726,12]
[359447544,1746021081578,-151.0,0.00039726,14]
[359447545,1746021081587,-151.0,0.00039726,14]
[359447546,1746021081596,-450.0,0.00039726,12]
[359447547,1746021081606,-450.0,0.00039726,12]
[359447548,1746021081616,-267.61951866,0.00039726,12]
[359447549,1746021081626,-160.701323,0.00039726,14]
[359447550,1746021081635,-450.0,0.00039726,12]
[359447551,1746021081645,-151.0,0.00039726,14]
[359447552,1746021081655,-151.0,0.00039726,14]
[359447553,1746021081664,-450.0,0.00039726,12]
[359447554,1746021081674,-450.0,0.00039726,12]
[359447555,1746021081685,-450.0,0.00039726,2]
[359447556,1746021081694,-450.0,0.00039726,12]
[359447557,1746021081704,-450.0,0.00039726,12]
[359447558,1746021081714,-450.0,0.00039726,12]
[359447559,1746021081723,-450.0,0.00039726,12]
[359447560,1746021081733,-450.0,0.00039726,12]
[359447561,1746021081742,-450.0,0.00039726,12]
[359447562,1746021081752,-401.03035093,0.00039726,12]
[359447563,1746021081761,-151.0,0.00039726,14]
[359447564,1746021081772,-508.25,0.000398,120]
[359447565,1746021081782,-450.21094934,0.00039824,2]
[359447566,1746021081791,-206.0,0.0003984,2]
[359447567,1746021081801,-206.0,0.0003984,30]
[359447568,1746021081811,-2066.5566721,0.00039866,15]
[359447569,1746021081821,-2981.12,0.000399,14]
[359447570,1746021081831,-500.0,0.00039918,2]
[359447571,1746021081840,-1811.5614671,0.00039973,2]
[359447572,1746021081849,-8911.106537,0.00039973,2]
[359447573,1746021081859,-348.70179687,0.00039999,31]
[359447574,1746021081868,-402.26581974,0.00039999,31]
[359447575,1746021081878,-488.00421821,0.00039999,31]
[359447576,1746021081887,-357.2604157,0.00039999,15]
[359447577,1746021081897,-351.30749783,0.00039999,31]
[359447578,1746021081907,-500.0,0.00039999,31]
[359447579,1746021081916,-429.69646415,0.00039999,15]
[359447580,1746021081926,-500.0,0.00039999,31]
[359447581,1746021081936,-633.66677293,0.00039999,31]
[359447582,1746021081945,-500.0,0.00039999,31]
[359447583,1746021081955,-500.0,0.00039999,31]
[359447584,1746021081965,-500.0,0.00039999,31]
[359447585,1746021081974,-500.0,0.00039999,31]
[359447586,1746021081984,-500.0,0.00039999,31]
[359447587,1746021081993,-500.0,0.00039999,31]
[359447588,1746021082003,-500.0,0.00039999,31]
[359447589,1746021082013,-500.0,0.00039999,31]
[359447590,1746021082022,-500.0,0.00039999,31]
[359447591,1746021082032,-500.0,0.00039999,31]
[359447592,1746021082042,-500.0,0.00039999,31]
[359447593,1746021082051,-500.0,0.00039999,31]
[359447594,1746021082062,-500.0,0.00039999,31]
[359447595,1746021082074,-500.0,0.00039999,31]
[359447596,1746021082084,-500.0,0.00039999,31]
[359447597,1746021082093,-500.0,0.00039999,31]
[359447598,1746021082103,-500.0,0.00039999,31]
[359447599,1746021082113,-500.0,0.00039999,31]
[359447600,1746021082122,-500.0,0.00039999,31]
[359447601,1746021082132,-279.49359898,0.00039999,31]
[359447602,1746021082146,-220.50640102,0.00039999,31]
[359447603,1746021082156,-180.77551797,0.00039999,31]
[359447604,1746021082165,-415.38497076,0.00039999,31]
[359447605,1746021082177,-84.61502924,0.00039999,31]
[359447606,1746021082190,-500.0,0.00039999,31]
[359447607,1746021082199,-500.0,0.00039999,31]
[359447608,1746021082209,-500.0,0.00039999,31]
[359447609,1746021082218,-500.0,0.00039999,31]
[359447610,1746021082228,-500.0,0.00039999,31]
[359447611,1746021082237,-500.0,0.00039999,31]
[359447612,1746021082246,-500.0,0.00039999,31]
[359447613,1746021082256,-500.0,0.00039999,31]
[359447614,1746021082266,-500.0,0.00039999,31]
[359447615,1746021082275,-500.0,0.00039999,31]
[359447616,1746021082284,-500.0,0.00039999,31]
[359447617,1746021082294,-500.0,0.00039999,31]
[359447618,1746021082303,-500.0,0.00039999,31]
[359447619,1746021082422,-500.0,0.00039999,31]
[359447620,1746021082432,-500.0,0.00039999,31]
[359447621,1746021082444,-500.0,0.00039999,31]
[359447622,1746021082453,-395.64097076,0.00039999,31]
[359447623,1746021082474,-104.35902924,0.00039999,31]
[359447624,1746021082484,-500.0,0.00039999,31]
[359447625,1746021082493,-126.5177408,0.00039999,31]
[359447626,1746021082505,-325.05817527,0.00039999,31]
[359447627,1746021082514,-500.0,0.00039999,31]
[359447628,1746021082525,-500.0,0.00039999,31]
[359447629,1746021082535,-500.0,0.00039999,31]
[359447630,1746021082544,-500.0,0.00039999,31]
[359447631,1746021082554,-403.17370962,0.00039999,31]
[359447632,1746021082564,-1000.0,0.0004,30]
[359447633,1746021082574,-450.0,0.0004,120]
[359447634,1746021082583,-157.890084,0.0004,14]
[359447635,1746021082593,-440.44681983,0.0004,12]
[359447636,1746021082603,-450.0,0.0004,12]
[359447637,1746021082612,-450.0,0.0004,12]
[359447638,1746021082621,-526.10191173,0.0004,12]
[359447639,1746021082630,-450.0,0.0004,12]
[359447640,1746021082639,-594.84143231,0.0004,12]
[359447641,1746021082649,-450.0,0.0004,12]
[359447642,1746021082658,-254.13140317,0.0004,12]
[359447643,1746021082668,-450.0,0.0004,12]
[359447644,1746021082677,-240.274954,0.0004,12]
[359447645,1746021082687,-450.0,0.0004,12]
[359447646,1746021082697,-157.39,0.0004,30]
[359447647,1746021082706,-157.39,0.0004,30]
[359447648,1746021082715,-1886.46,0.0004,12]
[359447649,1746021082725,-1177.61,0.0004,12]
[359447650,1746021082735,-450.0,0.0004,12]
[359447651,1746021082744,-450.0,0.0004,12]
[359447652,1746021082753,-1978.04,0.0004,12]
[359447653,1746021082762,-450.0,0.0004,12]
[359447654,1746021082772,-226.08451166,0.0004,12]
[359447655,1746021082781,-450.0,0.0004,12]
[359447656,1746021082790,-450.0,0.0004,12]
[359447657,1746021082799,-450.0,0.0004,12]
[359447658,1746021082809,-450.0,0.0004,12]
[359447659,1746021082818,-580.79,0.0004,12]
[359447660,1746021082828,-312.46905152,0.0004,12]
[359447661,1746021082837,-450.0,0.0004,12]
[359447662,1746021082847,-450.0,0.0004,12]
[359447663,1746021082856,-1389.1,0.0004,12]
[359447664,1746021082865,-450.0,0.0004,12]
[359447665,1746021082875,-450.0,0.0004,12]
[359447666,1746021082884,-450.0,0.0004,12]
[359447667,1746021082894,-450.0,0.0004,12]
[359447668,1746021082903,-450.0,0.0004,12]
[359447669,1746021082913,-450.0,0.0004,12]
[359447670,1746021082923,-450.0,0.0004,12]
[359447671,1746021082933,-450.0,0.0004,12]
[359447672,1746021082945,-450.0,0.0004,12]
[359447673,1746021082955,-450.0,0.0004,12]
[359447674,1746021082964,-450.0,0.0004,12]
[359447675,1746021082973,-450.0,0.0004,12]
[359447676,1746021082983,-450.0,0.0004,12]
[359447677,1746021082992,-450.0,0.0004,12]
[359447678,1746021083002,-450.0,0.0004,12]
[359447679,1746021083012,-450.0,0.0004,12]
[359447680,1746021083021,-450.0,0.0004,12]
[359447681,1746021083031,-450.0,0.0004,12]
[359447682,1746021083041,-450.0,0.0004,12]
[359447683,1746021083050,-450.0,0.0004,12]
[359447684,1746021083059,-450.0,0.0004,12]
[359447685,1746021083069,-360.46641029,0.0004,12]
[359447686,1746021083078,-450.0,0.0004,12]
[359447687,1746021083088,-239.55622029,0.0004,12]
[359447688,1746021083097,-183.82597522,0.0004,12]
[359447689,1746021083106,-450.0,0.0004,12]
[359447690,1746021083116,-450.0,0.0004,12]
[359447691,1746021083126,-711.6,0.0004,12]
[359447692,1746021083136,-605.26,0.0004,12]
[359447693,1746021083146,-268.68011194,0.0004,12]
[359447694,1746021083156,-450.0,0.0004,12]
[359447695,1746021083166,-506.82,0.0004,12]
[359447696,1746021083176,-192.74763708,0.0004,12]
[359447697,1746021083186,-235.23248475,0.0004,12]
[359447698,1746021083196,-152.67300354,0.0004,12]
[359447699,1746021083206,-450.0,0.0004,12]
[359447700,1746021083215,-450.0,0.0004,12]
[359447701,1746021083225,-450.0,0.0004,12]
[359447702,1746021083235,-189.63447404,0.0004,12]
[359447703,1746021083244,-450.0,0.0004,12]
[359447704,1746021083254,-338.44301814,0.0004,12]
[359447705,1746021083264,-450.0,0.0004,12]
[359447706,1746021083273,-450.0,0.0004,12]
[359447707,1746021083283,-307.14340019,0.0004,12]
[359447708,1746021083293,-450.0,0.0004,12]
[359447709,1746021083303,-206.87130925,0.0004,12]
[359447710,1746021083312,-450.0,0.0004,12]
[359447711,1746021083322,-153.884775,0.0004,14]
[359447712,1746021083332,-450.0,0.0004,12]
[359447713,1746021083343,-164.24472064,0.0004,12]
[359447714,1746021083352,-450.0,0.0004,12]
[359447715,1746021083362,-450.0,0.0004,12]
[359447716,1746021083371,-450.0,0.0004,12]
[359447717,1746021083381,-450.0,0.0004,12]
[359447718,1746021083391,-450.0,0.0004,12]
[359447719,1746021083401,-250.0,0.0004,12]
[359447720,1746021083410,-450.0,0.0004,12]
[359447721,1746021083418,-450.0,0.0004,12]
[359447722,1746021083428,-450.0,0.0004,12]
[359447723,1746021083437,-218.69736897,0.0004,12]
[359447724,1746021083448,-337.58880443,0.0004,12]
[359447725,1746021083458,-452.73817124,0.0004,12]
[359447726,1746021083468,-450.0,0.0004,12]
[359447727,1746021083480,-151.0,0.0004,14]
[359447728,1746021083491,-326.05583119,0.0004,12]
[359447729,1746021083501,-253.70191033,0.0004,12]
[359447730,1746021083511,-376.49608739,0.0004,12]
[359447731,1746021083523,-450.0,0.0004,8]
[359447732,1746021083533,-450.0,0.0004,12]
[359447733,1746021083543,-450.0,0.0004,12]
[359447734,1746021083555,-329.28809329,0.0004,12]
[359447735,1746021083565,-568.29319483,0.0004,12]
[359447736,1746021083575,-24.81915045,0.0004,12]
[359447737,1746021083590,-425.18084955,0.0004,12]
[359447738,1746021083600,-657.94,0.0004,12]
[359447739,1746021083610,-968.508467,0.0004,14]
[359447740,1746021083621,-373.752614,0.0004,14]
[359447741,1746021083631,-327.83338161,0.0004,12]
[359447742,1746021083640,-450.0,0.0004,12]
[359447743,1746021083650,-373.752614,0.0004,14]
[359447744,1746021083659,-450.0,0.0004,12]
[359447745,1746021083669,-450.0,0.0004,12]
[359447746,1746021083679,-450.0,0.0004,12]
[359447747,1746021083689,-450.0,0.0004,12]
[359447748,1746021083699,-285.66274453,0.0004,12]
[359447749,1746021083710,-164.33725547,0.0004,12]
[359447750,1746021083719,-450.0,0.0004,12]
[359447751,1746021083729,-471.36,0.0004,12]
[359447752,1746021083739,-231.52221356,0.0004,12]
[359447753,1746021083749,-450.0,0.0004,12]
[359447754,1746021083758,-450.0,0.0004,12]
[359447755,1746021083768,-202.22053097,0.0004,12]
[359447756,1746021083779,-123.07902653,0.0004,12]
[359447757,1746021083789,-3526.79861428,0.0004,7]
[359447758,1746021083800,-1095.03576676,0.0004,7]
[359447761,1746021381178,158.3,0.00016712,2]
[359447762,1746021444390,154.47342754,0.00019,2]
[359447764,1746022005349,163.24639797,0.00019,2]
[359447765,1746022024331,250.0,0.00017,2]
[359447766,1746022025399,153.23236294,0.00019,2]
[359447767,1746022025423,146.76763706,0.00019,2]
[359447781,1746022231333,-350.0,0.00021,2]
[359447784,1746022231345,-141.16473106,0.00021791,2]
[359447787,1746022231357,-108.83526894,0.00021791,2]
[359447790,1746022231366,-196.99807197,0.00021791,2]
[359447793,1746022231378,-3.00192803,0.00021791,2]
[359447795,1746022231387,-260.42807197,0.00021791,2]
[359447797,1746022231400,-239.57192803,0.00021791,2]
[359447799,1746022231411,-238.79704573,0.00021791,2]
[359447801,1746022231420,-250.0,0.0002239,2]
[359447803,1746022231430,-291.63102624,0.00023,2]
[359447804,1746022231477,-108.36897376,0.00023,2]
[359447805,1746022231486,-225.7294855,0.00024947,2]
[359447806,1746022231495,-165.68346189,0.00025,2]
[359447807,1746022231507,-284.31653811,0.00025,2]
[359447808,1746022231517,-164.21,0.00025464,2]
[359447809,1746022231527,-522.553121,0.00026462,2]
[359447810,1746022231538,-250.0,0.00026596,2]
[359447811,1746022231547,-500.0,0.00027,2]
[359447812,1746022231558,-30.32034089,0.00027356,2]
[359447813,1746022231569,-875.89999999,0.00027356,2]
[359447814,1746022231582,-293.77965912,0.00027356,2]
[359447815,1746022231592,-300.0,0.00027356,2]
[359447816,1746022231604,-202.62514188,0.00027356,15]
[359447817,1746022231613,-354.695219,0.00027357,2]
[359448117,1746022237477,-3978.841081,0.00027357,2]
[359448119,1746022237487,-265.35,0.00027397,2]
[359448121,1746022237498,-999.99,0.00027457,2]
[359448122,1746022237507,-150.99,0.00027458,2]
[359448124,1746022237516,-273.098363,0.00027748,2]
[359448125,1746022237526,-575.05773959,0.000289,8]
[359448126,1746022237538,-550.0,0.00029,2]
[359448127,1746022237547,-309.7204,0.00029145,2]
[359448128,1746022237557,-575.05773953,0.00029486,8]
[359448129,1746022237567,-575.05773953,0.00030072,9]
[359448130,1746022237577,-575.05773953,0.00030659,9]
[359448131,1746022237588,-158.3,0.00030964,2]
[359448132,1746022237597,-600.0,0.00031,2]
[359448133,1746022237609,-575.05773953,0.00031245,9]
[359448134,1746022237618,-1080.92,0.00031561,2]
[359448135,1746022237628,-293.0,0.00031739,2]
[359448136,1746022237637,-575.05773953,0.00031831,10]
[359448137,1746022237647,-1985.12,0.00031835,2]
[359448138,1746022237656,-226.3,0.0003188,2]
[359448139,1746022237665,-1283.64,0.0003192,2]
[359448140,1746022237675,-4000.0,0.00031956,2]
[359448141,1746022237684,-206.96,0.00032088,2]
[359448142,1746022237694,-156.39,0.00032096,2]
[359448143,1746022237704,-187.35498982,0.00032189,2]
[359448144,1746022237739,-62.64501018,0.00032189,2]
[359448145,1746022237748,-152.19,0.00032366,2]
[359448146,1746022237757,-1000.0,0.00032399,2]
[359448147,1746022237767,-575.05773953,0.00032417,10]
[359448148,1746022237777,-1385.68,0.0003242,2]
[359448149,1746022237789,-15981.91,0.00032659,2]
[359448150,1746022237798,-1000.0,0.00032677,2]
[359448151,1746022237808,-3827.26781215,0.00032678,2]
[359448152,1746022237820,-9406.20149483,0.00032678,2]
[359448155,1746022237831,-7709.56,0.00032678,2]
[359448157,1746022237843,-937.41873868,0.00032678,2]
[359448161,1746022237877,-556.83926743,0.00032678,2]
[359448432,1746022242386,-1462.71268691,0.00032678,2]
[359448433,1746022242395,-1190.36,0.00032778,2]
[359448434,1746022242404,-650.0,0.00033,2]
[359448435,1746022242413,-575.05773953,0.00033003,11]
[359448436,1746022242422,-2501.45,0.00033015,120]
[359448437,1746022242431,-265.35,0.00033165,2]
[359448438,1746022242439,-150.0,0.00033435,2]
[359448439,1746022242448,-283.83,0.00033435,2]
[359448440,1746022242457,-171.96,0.00033435,2]
[359448442,1746022242467,-575.05773953,0.0003359,11]
[359448443,1746022242476,-1080.92,0.00033824,2]
[359448444,1746022242486,-575.05773953,0.00034176,11]
[359448446,1746022242495,-575.05773953,0.00034762,12]
[359448448,1746022242504,-156.39,0.00034771,2]
[359448450,1746022242514,-700.0,0.00035,2]
[359448452,1746022242524,-575.05773953,0.00035348,12]
[359448454,1746022242534,-500.0,0.00035616,2]
[359448455,1746022242544,-152.0,0.00035659,3]
[359448458,1746022242555,-575.05773953,0.00035934,12]
[359448462,1746022242565,-1080.92,0.00036088,2]
[359448466,1746022242576,-1000.0,0.00036449,2]
[359448470,1746022242587,-575.05773953,0.00036521,13]
[359448475,1746022242597,-575.05773953,0.00037107,13]
[359448479,1746022242608,-29625.08,0.00037158,2]
[359448483,1746022242618,-1970.081,0.00037375,48]
[359448486,1746022242628,-174.093,0.00037375,48]
[359448487,1746022242638,-156.39,0.00037445,2]
[359448488,1746022242650,-167.5,0.00037574,2]
[359448489,1746022242662,-575.05773953,0.00037693,14]
[359448490,1746022242673,-2014.4745,0.00037708,10]
[359448492,1746022242683,-577.5393,0.00037708,2]
[359448493,1746022242694,-180.82247001,0.00037708,2]
[359448495,1746022242704,-74138.6958533,0.00037798,4]
[359448498,1746022242714,-825.45,0.000378,2]
[359448499,1746022242724,-155.215563,0.00037808,30]
[359448501,1746022242733,-155.215563,0.00037808,30]
[359448503,1746022242743,-155.215563,0.00037808,30]
[359448505,1746022242752,-155.215563,0.00037808,30]
[359448506,1746022242761,-155.215563,0.00037808,30]
[359448508,1746022242771,-155.215563,0.00037808,30]
[359448510,1746022242781,-155.215563,0.00037808,30]
[359448513,1746022242793,-155.215563,0.00037808,30]
[359448515,1746022242804,-155.215563,0.00037808,30]
[359448517,1746022242814,-155.215563,0.00037808,30]
[359448519,1746022242823,-155.215563,0.00037808,30]
[359448521,1746022242832,-155.215563,0.00037808,30]
[359448523,1746022242841,-155.215563,0.00037808,30]
[359448526,1746022242851,-155.215563,0.00037808,30]
[359448528,1746022242862,-155.215563,0.00037808,30]
[359448530,1746022242871,-470.0,0.00037808,12]
[359448532,1746022242881,-380.0780434,0.00037808,12]
[359448534,1746022242890,-450.0,0.00037808,12]
[359448536,1746022242899,-450.0,0.00037808,7]
[359448538,1746022242909,-450.0,0.00037808,12]
[359448540,1746022242918,-450.0,0.00037808,12]
[359448542,1746022242927,-450.0,0.00037808,12]
[359448544,1746022242936,-450.0,0.00037808,12]
[359448546,1746022242945,-450.0,0.00037808,12]
[359448548,1746022242955,-538.89273334,0.00037808,12]
[359448550,1746022242964,-1318.69,0.00037808,12]
[359448552,1746022242974,-450.0,0.00037808,12]
[359448554,1746022242984,-450.0,0.00037808,12]
[359448556,1746022242993,-450.0,0.00037808,12]
[359448558,1746022243002,-450.0,0.00037808,12]
[359448560,1746022243012,-450.0,0.00037808,12]
[359448561,1746022243022,-450.0,0.00037808,12]
[359448562,1746022243031,-450.0,0.00037808,12]
[359448563,1746022243041,-450.0,0.00037808,12]
[359448564,1746022243051,-450.0,0.00037808,12]
[359448565,1746022243060,-450.0,0.00037808,12]
[359448566,1746022243071,-450.0,0.00037808,12]
[359448568,1746022243082,-301.01947994,0.00037808,30]
[359448569,1746022243091,-450.0,0.00037808,12]
[359448570,1746022243101,-450.0,0.00037808,12]
[359448572,1746022243111,-450.0,0.00037808,12]
[359448573,1746022243120,-450.0,0.00037808,12]
[359448575,1746022243130,-154.641444,0.00037808,30]
[359448577,1746022243140,-154.641444,0.00037808,30]
[359448578,1746022243149,-154.641444,0.00037808,30]
[359448579,1746022243159,-154.641444,0.00037808,30]
[359448580,1746022243169,-154.641444,0.00037808,30]
[359448581,1746022243178,-154.641444,0.00037808,30]
[359448582,1746022243188,-154.641444,0.00037808,30]
[359448583,1746022243198,-154.641444,0.00037808,30]
[359448584,1746022243207,-154.641444,0.00037808,30]
[359448585,1746022243216,-154.641444,0.00037808,30]
[359448586,1746022243226,-154.641444,0.00037808,30]
[359448587,1746022243236,-154.641444,0.00037808,30]
[359448588,1746022243245,-154.641444,0.00037808,30]
[359448589,1746022243254,-154.641444,0.00037808,30]
[359448590,1746022243263,-154.641444,0.00037808,30]
[359448591,1746022243272,-587.80441871,0.00037808,12]
[359448592,1746022243280,-450.0,0.00037808,12]
[359448593,1746022243289,-450.0,0.00037808,12]
[359448594,1746022243299,-504.3540828,0.00037808,12]
[359448595,1746022243308,-1000.0,0.00037808,2]
[359448596,1746022243318,-450.0,0.00037808,12]
[359448597,1746022243326,-450.0,0.00037808,12]
[359448598,1746022243336,-450.0,0.00037808,12]
[359448599,1746022243346,-450.0,0.00037808,12]
[359448600,1746022243516,-300.0,0.00037808,12]
[359448601,1746022243527,-450.0,0.00037808,12]
[359448602,1746022243538,-563.2,0.00037808,12]
[359448603,1746022243547,-450.90807567,0.00037808,12]
[359448604,1746022243557,-450.0,0.00037808,12]
[359448605,1746022243567,-450.0,0.00037808,12]
[359448606,1746022243577,-450.0,0.00037808,12]
[359448607,1746022243586,-166.85595073,0.00037808,12]
[359448608,1746022243596,-500.0,0.00037808,12]
[359448609,1746022243605,-500.0,0.00037808,12]
[359448610,1746022243615,-500.0,0.00037808,12]
[359448611,1746022243625,-500.0,0.00037808,12]
[359448612,1746022243635,-500.0,0.00037808,12]
[359448613,1746022243644,-501.21805917,0.00037808,12]
[359448614,1746022243654,-450.0,0.00037808,12]
[359448615,1746022243664,-1422.95,0.00037808,12]
[359448616,1746022243674,-450.0,0.00037808,12]
[359448617,1746022243684,-450.0,0.00037808,12]
[359448619,1746022243693,-450.0,0.00037808,12]
[359448621,1746022243703,-450.0,0.00037808,12]
[359448622,1746022243713,-450.0,0.00037808,12]
[359448623,1746022243722,-450.0,0.00037808,12]
[359448624,1746022243731,-450.0,0.00037808,12]
[359448625,1746022243741,-450.0,0.00037808,12]
[359448626,1746022243751,-450.0,0.00037808,12]
[359448627,1746022243761,-450.0,0.00037808,12]
[359448628,1746022243772,-450.0,0.00037808,12]
[359448629,1746022243781,-327.00680538,0.00037808,12]
[359448630,1746022243795,-450.0,0.00037808,12]
[359448631,1746022243805,-450.0,0.00037808,12]
[359448632,1746022243814,-450.0,0.00037808,12]
[359448633,1746022243825,-234.29841188,0.00037808,12]
[359448634,1746022243835,-450.0,0.00037808,12]
[359448635,1746022243845,-450.0,0.00037808,5]
[359448636,1746022243854,-450.0,0.00037808,12]
[359448637,1746022243866,-511.82398673,0.00037808,12]
[359448638,1746022243878,-450.0,0.00037808,12]
[359448639,1746022243887,-450.0,0.00037808,12]
[359448640,1746022243897,-450.0,0.00037808,12]
[359448641,1746022243906,-450.0,0.00037808,12]
[359448642,1746022243916,-450.0,0.00037808,12]
[359448643,1746022243926,-250.0,0.00037808,12]
[359448644,1746022243935,-450.0,0.00037808,12]
[359448645,1746022243945,-450.0,0.00037808,12]
[359448646,1746022243955,-450.0,0.00037808,12]
[359448647,1746022243964,-450.0,0.00037808,12]
[359448648,1746022243974,-450.0,0.00037808,12]
[359448649,1746022243984,-450.0,0.00037808,12]
[359448650,1746022243994,-450.0,0.00037808,12]
[359448651,1746022244003,-450.0,0.00037808,12]
[359448653,1746022244012,-450.0,0.00037808,12]
[359448654,1746022244022,-450.0,0.00037808,12]
[359448655,1746022244032,-450.0,0.00037808,12]
[359448656,1746022244042,-450.0,0.00037808,12]
[359448657,1746022244052,-450.0,0.00037808,12]
[359448658,1746022244061,-450.0,0.00037808,12]
[359448659,1746022244070,-221.87801482,0.00037808,12]
[359448660,1746022244080,-450.0,0.00037808,12]
[359448661,1746022244090,-450.0,0.00037808,12]
[359448662,1746022244100,-450.0,0.00037808,12]
[359448663,1746022244111,-450.0,0.00037808,12]
[359448664,1746022244120,-450.0,0.00037808,12]
[359448665,1746022244130,-450.0,0.00037808,12]
[359448666,1746022244140,-450.0,0.00037808,12]
[359448667,1746022244149,-450.0,0.00037808,12]
[359448668,1746022244159,-450.0,0.00037808,12]
[359448669,1746022244169,-450.0,0.00037808,12]
[359448670,1746022244179,-450.0,0.00037808,12]
[359448671,1746022244189,-450.0,0.00037808,12]
[359448672,1746022244199,-450.0,0.00037808,12]
[359448673,1746022244209,-450.0,0.00037808,12]
[359448674,1746022244219,-450.0,0.00037808,12]
[359448675,1746022244229,-450.0,0.00037808,12]
[359448676,1746022244239,-450.0,0.00037808,12]
[359448677,1746022244248,-450.0,0.00037808,12]
[359448678,1746022244259,-450.0,0.00037808,12]
[359448679,1746022244268,-509.64169265,0.00037808,12]
[359448680,1746022244277,-450.0,0.00037808,12]
[359448681,1746022244287,-450.0,0.00037808,12]
[359448682,1746022244297,-450.0,0.00037808,12]
[359448683,1746022244307,-170.12450824,0.00037808,12]
[359448684,1746022244316,-450.0,0.00037808,12]
[359448685,1746022244325,-470.0,0.00037808,12]
[359448686,1746022244334,-544.77683611,0.00037808,12]
[359448687,1746022244344,-401.3866961,0.00037808,12]
[359448688,1746022244353,-450.0,0.00037808,12]
[359448689,1746022244366,-450.0,0.00037808,12]
[359448690,1746022244375,-450.0,0.00037808,12]
[359448691,1746022244386,-450.0,0.00037808,12]
[359448692,1746022244395,-450.0,0.00037808,12]
[359448693,1746022244405,-173.18050871,0.00037808,12]
[359448694,1746022244415,-450.0,0.00037808,12]
[359448695,1746022244425,-174.28,0.00037808,12]
[359448696,1746022244435,-450.0,0.00037808,12]
[359448697,1746022244444,-417.08105809,0.00037808,12]
[359448698,1746022244454,-450.0,0.00037808,12]
[359448699,1746022244463,-450.0,0.00037808,12]